fUSD/lending_fUSD_20260422
["ID","MTS","AMOUNT","RATE_DAILY","PERIOD"]
[420966270,1776817845035,-629.8273449,0.00011163,2]
[420966271,1776817845045,-191.68,0.00011169,2]
[420966272,1776817845054,-55456.03067033,0.00011181,2]
[420966273,1776817845064,-56160.03739724,0.00011203,2]
[420966274,1776817845098,-770.45357976,0.00011203,2]
[420966275,1776817845134,-733.3777153,0.00011203,2]
[420966276,1776817845600,-555.0,0.00010376,2]
[420966278,1776817846420,-672.0934198,0.0001,2]
[420966279,1776817846429,-3225.0,0.00010376,2]
[420966280,1776817846439,-506.11547483,0.00010959,2]
[420966281,1776817846448,-672.0934198,0.00011089,2]
[420966282,1776817846458,-27672.17045296,0.00011203,2]
[420966283,1776817846468,-373.89,0.0001122,2]
[420966284,1776817846477,-735.52,0.00011221,2]
[420966285,1776817846486,-150.0,0.00011233,2]
[420966286,1776817846496,-802.37,0.00011233,2]
[420966287,1776817846505,-1536.04360649,0.00011243,2]
[420966288,1776817846515,-187.78006525,0.00011243,2]
[420966289,1776817846525,-452.32,0.00011258,2]
[420966290,1776817846534,-300.0,0.00011262,2]
[420966291,1776817846544,-300.0,0.00011262,2]
[420966292,1776817846554,-300.0,0.00011262,2]
[420966293,1776817846563,-708.34,0.00011273,2]
[420966294,1776817846573,-509.97,0.00011273,2]
[420966295,1776817846582,-357.9,0.00011276,2]
[420966296,1776817846591,-12704.9602461,0.00011282,2]
[420966297,1776817846601,-276.0857782,0.00011282,2]
[420966298,1776817846610,-195.3531066,0.00011282,2]
[420966299,1776817846619,-2000.0,0.00011301,2]
[420966300,1776817846628,-300.0,0.00011313,2]
[420966301,1776817846638,-300.0,0.00011313,2]
[420966302,1776817846648,-1626.99,0.00011314,2]
[420966303,1776817846658,-7674.64,0.00011314,2]
[420966304,1776817846668,-1820.0,0.00011314,2]
[420966305,1776817846677,-76301.31444217,0.00011314,2]
[420966306,1776817846803,-4638.85904344,0.00011314,2]
[420966308,1776817846814,-5580.86575464,0.00011314,2]
[420966309,1776817846831,-10355.93768118,0.00011314,2]
[420966310,1776817846842,-3958.647386,0.00011314,2]
[420966313,1776818412632,-332.32904895,0.00018,120]
[420966314,1776818412669,-332.32904895,0.000188,120]
[420966315,1776818412699,-332.32904895,0.000196,120]
[420966316,1776818412728,-9003.01285315,0.0002,120]
[420966317,1776818469377,-10000.0,0.0002,120]
[420966318,1776818482636,-10000.0,0.0002,120]
[420966319,1776818607436,-5000.0,0.0002,120]
[420966320,1776818653147,-5000.0,0.0002,120]
[420966321,1776818697092,-5000.0,0.0002,120]
[420966322,1776818741746,-408.0,0.00019285,120]
[420966323,1776818741778,-5592.0,0.0002,120]
[420966324,1776818753558,-5000.0,0.0002,120]
[420966325,1776818760567,-2000.0,0.0002,120]
[420966326,1776818796413,-5000.0,0.0002,120]
[420966327,1776818801586,-5000.0,0.0002,120]
[420966328,1776818805972,-5000.0,0.0002,120]
[420966350,1776819032959,-222.77874722,7.866e-05,2]
[420966351,1776819032971,-2552.98,8.086e-05,2]
[420966352,1776819032993,-500.0,8.097e-05,2]
[420966353,1776819033008,-1000.0,8.5e-05,2]
[420966354,1776819033021,-186.20765318,8.52e-05,2]
[420966355,1776819033039,-1013.79234682,8.52e-05,2]
[420966356,1776819033052,-300.0,8.521e-05,2]
[420966357,1776819033066,-292.33152696,8.521e-05,2]
[420966358,1776819033083,-525.79675041,8.521e-05,2]
[420966359,1776819033100,-381.87172263,8.521e-05,2]
[420966360,1776819033115,-300.0,8.521e-05,2]
[420966361,1776819033129,-290.0,8.521e-05,2]
[420966362,1776819033142,-300.0,8.521e-05,2]
[420966363,1776819033156,-500.0,8.523e-05,2]
[420966364,1776819033169,-500.0,8.523e-05,2]
[420966365,1776819033182,-150.0,8.547e-05,2]
[420966366,1776819033195,-168.59,8.548e-05,2]
[420966367,1776819033207,-812.45499721,8.548e-05,2]
[420966368,1776819033259,-1886.41600279,8.548e-05,2]
[420966369,1776819033273,-1000.0,8.6e-05,3]
[420966370,1776819033285,-250.0,8.652e-05,2]
[420966371,1776819033297,-250.0,8.652e-05,2]
[420966372,1776819033310,-250.0,8.652e-05,2]
[420966373,1776819033322,-1127.33,8.66e-05,2]
[420966374,1776819033335,-500.0,8.743e-05,2]
[420966375,1776819033347,-500.0,8.759e-05,2]
[420966376,1776819033360,-500.0,8.759e-05,2]
[420966377,1776819033373,-266.8538289,8.759e-05,2]
[420966378,1776819033385,-450.37286556,8.759e-05,2]
[420966379,1776819033397,-633.69561415,8.759e-05,2]
[420966380,1776819033409,-186.91366632,8.759e-05,2]
[420966381,1776819033422,-164.12570421,8.759e-05,2]
[420966382,1776819033434,-500.0,8.759e-05,2]
[420966383,1776819033447,-500.0,8.759e-05,2]
[420966384,1776819033459,-500.0,8.759e-05,2]
[420966385,1776819033471,-500.0,8.759e-05,2]
[420966386,1776819033484,-500.0,8.759e-05,2]
[420966387,1776819033496,-500.0,8.759e-05,2]
[420966388,1776819033507,-500.0,8.759e-05,2]
[420966389,1776819033519,-500.0,8.759e-05,2]
[420966390,1776819033531,-500.0,8.759e-05,2]
[420966391,1776819033543,-500.0,8.759e-05,2]
[420966392,1776819033556,-500.0,8.759e-05,2]
[420966393,1776819033568,-500.0,8.759e-05,2]
[420966394,1776819033580,-500.0,8.759e-05,2]
[420966395,1776819033593,-500.0,8.759e-05,2]
[420966396,1776819033605,-500.0,8.759e-05,2]
[420966397,1776819033616,-561.66583172,8.759e-05,2]
[420966398,1776819033629,-500.0,8.759e-05,2]
[420966399,1776819033640,-500.0,8.759e-05,2]
[420966400,1776819033652,-500.0,8.759e-05,2]
[420966401,1776819033664,-500.0,8.759e-05,2]
[420966402,1776819033676,-500.0,8.759e-05,2]
[420966403,1776819033689,-500.0,8.759e-05,2]
[420966404,1776819033701,-500.0,8.759e-05,2]
[420966405,1776819033712,-500.0,8.759e-05,2]
[420966406,1776819033725,-500.0,8.759e-05,2]
[420966407,1776819033737,-500.0,8.759e-05,2]
[420966408,1776819033749,-500.0,8.759e-05,2]
[420966409,1776819033761,-500.0,8.759e-05,2]
[420966410,1776819033773,-500.0,8.759e-05,2]
[420966411,1776819033785,-500.0,8.759e-05,2]
[420966412,1776819033797,-500.0,8.759e-05,2]
[420966413,1776819033808,-500.0,8.759e-05,2]
[420966414,1776819033820,-500.0,8.759e-05,2]
[420966415,1776819033832,-500.0,8.759e-05,2]
[420966416,1776819033844,-500.0,8.759e-05,2]
[420966417,1776819033856,-500.0,8.759e-05,2]
[420966418,1776819033867,-500.0,8.759e-05,2]
[420966419,1776819033880,-500.0,8.759e-05,2]
[420966420,1776819033893,-500.0,8.759e-05,2]
[420966421,1776819033904,-350.0,8.759e-05,2]
[420966422,1776819033916,-500.0,8.759e-05,2]
[420966423,1776819033927,-1000.0,8.76e-05,2]
[420966424,1776819033939,-1000.0,8.76e-05,2]
[420966425,1776819033951,-1000.0,8.76e-05,2]
[420966426,1776819033963,-1000.0,8.76e-05,2]
[420966427,1776819033974,-1000.0,8.76e-05,2]
[420966428,1776819033986,-1000.0,8.76e-05,2]
[420966429,1776819033998,-1000.0,8.76e-05,2]
[420966430,1776819034010,-1019.8448,8.76e-05,2]
[420966431,1776819034021,-508.95216885,8.76e-05,2]
[420966432,1776819034032,-277.11950707,8.788e-05,2]
[420966433,1776819034044,-209.0,8.788e-05,2]
[420966434,1776819034056,-600.0,8.8e-05,3]
[420966435,1776819034067,-1300.0,8.9e-05,3]
[420966436,1776819034079,-2000.0,9e-05,3]
[420966437,1776819034090,-230.0,9.041e-05,2]
[420966438,1776819034101,-433.09,9.047e-05,2]
[420966439,1776819034113,-2587.06,9.123e-05,2]
[420966440,1776819034124,-444.0,9.173e-05,2]
[420966441,1776819034135,-260.0,9.173e-05,2]
[420966442,1776819034146,-259.0,9.192e-05,2]
[420966443,1776819034159,-1813.99,9.203e-05,2]
[420966444,1776819034172,-335.33895381,9.296e-05,2]
[420966445,1776819034183,-1028.87,9.335e-05,2]
[420966446,1776819034195,-1680.0,9.372e-05,2]
[420966447,1776819034206,-366.0,9.373e-05,2]
[420966448,1776819034217,-265.0,9.373e-05,2]
[420966449,1776819034228,-420.0,9.373e-05,2]
[420966450,1776819034239,-255.0,9.401e-05,2]
[420966451,1776819034249,-214.75,9.482e-05,2]
[420966452,1776819034261,-1852.42,9.621e-05,2]
[420966453,1776819034272,-500.0,9.687e-05,2]
[420966454,1776819034283,-150.0,9.726e-05,2]
[420966455,1776819034295,-150.0,9.726e-05,2]
[420966456,1776819034306,-500.0,9.726e-05,2]
[420966457,1776819034317,-500.0,9.726e-05,2]
[420966458,1776819034327,-150.0,9.726e-05,2]
[420966459,1776819034339,-252.71484517,9.726e-05,2]
[420966460,1776819034349,-150.0,9.726e-05,2]
[420966461,1776819034360,-150.0,9.726e-05,2]
[420966462,1776819034371,-500.0,9.77e-05,2]
[420966463,1776819034382,-500.0,9.77e-05,2]
[420966464,1776819034392,-500.48760192,9.77e-05,2]
[420966465,1776819034404,-500.0,9.77e-05,2]
[420966466,1776819034414,-500.0,9.77e-05,2]
[420966467,1776819034425,-150.0,9.929e-05,2]
[420966468,1776819034436,-5520.71,9.938e-05,2]
[420966469,1776819034447,-281.20101112,0.0001,2]
[420966470,1776819034458,-495.41923019,0.0001,2]
[420966471,1776819034469,-538.5437197,0.0001,2]
[420966472,1776819034480,-200.0,0.0001,2]
[420966473,1776819034491,-500.0,0.0001,2]
[420966474,1776819034502,-151.0,0.0001,2]
[420966475,1776819034513,-395.24826756,0.0001,2]
[420966476,1776819034524,-151.0,0.0001,2]
[420966477,1776819034535,-151.0,0.0001,2]
[420966478,1776819034546,-151.0,0.0001,2]
[420966479,1776819034557,-151.0,0.0001,2]
[420966480,1776819034568,-151.0,0.0001,2]
[420966481,1776819034579,-151.0,0.0001,2]
[420966482,1776819034590,-151.0,0.0001,2]
[420966483,1776819034601,-2700.0,0.0001,3]
[420966484,1776819034612,-151.0,0.0001,2]
[420966485,1776819034622,-151.0,0.0001,2]
[420966486,1776819034633,-151.0,0.0001,2]
[420966487,1776819034644,-151.0,0.0001,2]
[420966488,1776819034655,-154.96599412,0.0001,2]
[420966489,1776819034667,-500.0,0.0001,2]
[420966490,1776819034678,-500.0,0.0001,2]
[420966491,1776819034689,-559.59070162,0.0001,2]
[420966492,1776819034700,-151.0,0.0001,2]
[420966493,1776819034712,-300.2325619,0.0001,2]
[420966494,1776819034723,-599.60298508,0.00010216,2]
[420966495,1776819034734,-200.0,0.00010216,2]
[420966496,1776819034744,-721.12765535,0.00010216,2]
[420966497,1776819034756,-9552.16786547,0.00010216,2]
[420966498,1776819034767,-1428.38747117,0.00010216,2]
[420966499,1776819034778,-500.0,0.00010216,2]
[420966500,1776819034789,-209.40437684,0.00010216,2]
[420966501,1776819034800,-743.50770149,0.00010216,2]
[420966502,1776819034811,-174.61919141,0.00010216,2]
[420966503,1776819034822,-235.75327194,0.00010216,2]
[420966504,1776819034834,-244.476143,0.00010216,2]
[420966505,1776819034845,-247.80621992,0.00010216,2]
[420966506,1776819034856,-9905.5980765,0.00010271,2]
[420966507,1776819034867,-500.0,0.00010271,2]
[420966508,1776819034878,-393.39778614,0.000103,2]
[420966509,1776819034889,-155.0,0.000103,2]
[420966510,1776819034900,-155.0,0.000103,2]
[420966511,1776819034911,-2351.0,0.00010309,2]
[420966512,1776819034923,-500.0,0.00010314,2]
[420966513,1776819034934,-500.0,0.00010314,2]
[420966514,1776819034945,-500.0,0.00010314,2]
[420966515,1776819034956,-500.0,0.00010314,2]
[420966516,1776819034967,-500.0,0.00010314,2]
[420966517,1776819034977,-500.0,0.00010314,2]
[420966518,1776819034989,-500.0,0.00010314,2]
[420966519,1776819035000,-500.0,0.00010314,2]
[420966520,1776819035011,-500.0,0.00010314,2]
[420966521,1776819035022,-500.0,0.00010314,2]
[420966522,1776819035033,-500.0,0.00010314,2]
[420966523,1776819035044,-500.0,0.00010314,2]
[420966524,1776819035055,-500.0,0.00010314,2]
[420966525,1776819035065,-500.0,0.00010314,2]
[420966526,1776819035076,-500.0,0.00010314,2]
[420966527,1776819035087,-500.0,0.00010314,2]
[420966528,1776819035097,-500.0,0.00010314,2]
[420966529,1776819035108,-500.0,0.00010314,2]
[420966530,1776819035119,-500.0,0.00010314,2]
[420966531,1776819035129,-500.0,0.00010314,2]
[420966532,1776819035141,-500.0,0.00010314,2]
[420966533,1776819035153,-500.0,0.00010314,2]
[420966534,1776819035164,-500.0,0.00010314,2]
[420966535,1776819035175,-500.0,0.00010314,2]
[420966536,1776819035187,-500.0,0.00010314,2]
[420966537,1776819035197,-500.0,0.00010314,2]
[420966538,1776819035208,-500.0,0.00010314,2]
[420966539,1776819035219,-500.0,0.00010314,2]
[420966540,1776819035230,-500.0,0.00010314,2]
[420966541,1776819035241,-500.0,0.00010314,2]
[420966542,1776819035251,-500.0,0.00010314,2]
[420966543,1776819035263,-500.0,0.00010314,2]
[420966544,1776819035274,-500.0,0.00010314,2]
[420966545,1776819035285,-500.0,0.00010314,2]
[420966546,1776819035295,-500.0,0.00010314,2]
[420966547,1776819035307,-502.13,0.00010314,2]
[420966548,1776819035317,-500.0,0.00010314,2]
[420966549,1776819035328,-500.0,0.00010314,2]
[420966550,1776819035339,-500.0,0.00010314,2]
[420966551,1776819035349,-500.0,0.00010314,2]
[420966552,1776819035360,-500.0,0.00010314,2]
[420966553,1776819035371,-500.0,0.00010314,2]
[420966554,1776819035382,-500.0,0.00010314,2]
[420966555,1776819035393,-500.0,0.00010314,2]
[420966556,1776819036967,-500.0,0.00010314,2]
[420966557,1776819037018,-361.46,0.00010314,2]
[420966558,1776819037055,-500.0,0.00010318,2]
[420966559,1776819037091,-965.26650708,0.00010318,2]
[420966560,1776819037105,-500.0,0.00010318,2]
[420966561,1776819037115,-477.68136442,0.00010318,2]
[420966562,1776819037125,-10272.10520533,0.00010326,2]
[420966563,1776819037135,-500.0,0.00010326,2]
[420966564,1776819037144,-433.0,0.00010342,2]
[420966565,1776819037153,-10652.17309792,0.00010381,2]
[420966566,1776819037163,-1048.0,0.00010408,2]
[420966567,1776819037172,-1219.0,0.00010408,2]
[420966568,1776819037182,-927.0,0.00010408,2]
[420966569,1776819037191,-151.0,0.00010408,2]
[420966570,1776819037201,-2474.0,0.00010408,2]
[420966571,1776819037211,-11046.30350255,0.00010436,2]
[420966572,1776819037220,-164.8088,0.00010473,2]
[420966573,1776819037230,-11455.01673214,0.00010491,2]
[420966574,1776819037240,-250.0,0.00010514,2]
[420966575,1776819037249,-11878.85235123,0.00010546,2]
[420966576,1776819037258,-200.0,0.00010548,2]
[420966577,1776819037268,-12318.36988823,0.00010601,2]
[420966578,1776819037277,-12774.14957409,0.00010656,2]
[420966579,1776819037287,-10298.23738342,0.00010711,2]
[420966580,1776819037296,-482.0,0.00010716,5]
[420966581,1776819037306,-200.0,0.00010764,2]
[420966582,1776819037315,-1481.23780761,0.00010764,2]
[420966583,1776819037325,-217.15233878,0.00010764,2]
[420966584,1776819037335,-771.01748645,0.00010764,2]
[420966585,1776819037344,-194.24097532,0.00010764,2]
[420966586,1776819037353,-151.0,0.00010898,2]
[420966587,1776819037363,-151.09,0.00010898,2]
[420966588,1776819037373,-3400.0,0.000109,3]
[420966589,1776819037382,-999.0,0.000109,2]
[420966590,1776819037391,-1000.0,0.000109,2]
[420966591,1776819037401,-313.0,0.000109,2]
[420966592,1776819037411,-151.0,0.00010906,2]
[420966593,1776819037420,-160.0,0.0001091,2]
[420966594,1776819037430,-396.009508,0.0001091,2]
[420966595,1776819037439,-632.019017,0.0001091,2]
[420966596,1776819037449,-1166.00136352,0.00010949,2]
[420966597,1776819037458,-480.1793156,0.00010959,2]
[420966598,1776819037469,-200.0,0.00010959,2]
[420966599,1776819037479,-500.0,0.00010959,2]
[420966600,1776819037488,-3240.0,0.00010959,2]
[420966601,1776819037497,-150.0,0.00010959,2]
[420966602,1776819037507,-222.18204223,0.00010959,2]
[420966603,1776819037516,-2069.16336934,0.00010999,2]
[420966604,1776819037526,-155.0,0.00011,2]
[420966605,1776819037535,-155.0,0.00011,2]
[420966607,1776819037545,-155.0,0.00011,2]
[420966608,1776819037554,-157.82,0.00011,2]
[420966609,1776819037564,-214.67,0.00011045,2]
[420966610,1776819037574,-200.0,0.00011065,2]
[420966611,1776819037583,-25000.0,0.00011065,2]
[420966612,1776819037592,-207.57883885,0.00011073,2]
[420966613,1776819037602,-11973.36244629,0.00011074,2]
[420966614,1776819037617,-605.6100191,0.00011074,2]
[420966615,1776819037629,-805.47043148,0.00011074,2]
[420966616,1776819037640,-958.35718436,0.00011074,2]
[420966617,1776819037845,-485.4185,0.00011074,2]
[420966618,1776819037873,-570.12167865,0.00011074,2]
[420966619,1776819037884,-9601.65974012,0.00011074,2]
[420966620,1776819037894,-25000.0,0.00011083,2]
[420966621,1776819037904,-464.18480798,0.00011088,2]
[420966622,1776819037914,-25000.0,0.00011092,2]
[420966623,1776819037924,-200.0,0.00011096,2]
[420966624,1776819037933,-300.0,0.00011098,2]
[420966625,1776819037942,-155.0,0.00011098,2]
[420966626,1776819037952,-21198.64651474,0.00011099,2]
[420966627,1776819037961,-21198.6465147,0.00011099,2]
[420966628,1776819037971,-21198.6465147,0.00011099,2]
[420966629,1776819037982,-3800.5301811,0.00011099,2]
[420966630,1776819037994,-17398.1163336,0.00011099,2]
[420966631,1776819038004,-11509.67079216,0.00011099,2]
[420966710,1776819038804,-200.0,0.00011065,2]
[420966711,1776819038814,-200.0,0.00011065,2]
[420966712,1776819038824,-200.0,0.00011065,2]
[420966713,1776819038834,-200.0,0.00011065,2]
[420966714,1776819038844,-200.0,0.00011065,2]
[420966715,1776819038854,-200.0,0.00011065,2]
[420966716,1776819038864,-200.0,0.00011065,2]
[420966717,1776819038874,-200.0,0.00011065,2]
[420966718,1776819038884,-200.0,0.00011065,2]
[420966719,1776819038895,-200.0,0.00011065,2]
[420966720,1776819038905,-200.0,0.00011065,2]
[420966721,1776819038915,-200.0,0.00011065,2]
[420966722,1776819038925,-200.0,0.00011065,2]
[420966723,1776819038935,-200.0,0.00011065,2]
[420966724,1776819038945,-200.0,0.00011065,2]
[420966725,1776819038956,-9688.97572254,0.00011099,2]
[420966726,1776819038966,-3403.34261916,0.00011099,2]
[420966727,1776819038978,-564.0886184,0.00011099,2]
[420966728,1776819038990,-2000.0,0.00011099,2]
[420966729,1776819039001,-1020.29583807,0.00011099,2]
[420966730,1776819039013,-526.50344134,0.00011099,2]
[420966731,1776819039025,-500.0,0.00011099,2]
[420966732,1776819039129,-306.62522096,0.00011099,2]
[420966733,1776819039141,-1094.0,0.00011099,2]
[420966734,1776819039152,-400.93977782,0.00011099,2]
[420966735,1776819039170,-200.0,0.00011065,2]
[420966736,1776819039180,-1181.09443239,0.00011099,2]
[420966737,1776819039191,-3572.87009396,0.00011099,2]
[420966738,1776819039203,-2093.68970089,0.00011099,2]
[420966739,1776819039716,-200.0,0.00011065,2]
[420966740,1776819039726,-200.0,0.00011065,2]
[420966741,1776819039736,-200.0,0.00011065,2]
[420966742,1776819039746,-200.0,0.00011065,2]
[420966743,1776819039756,-4535.19677171,0.00011099,2]
[420966744,1776819039765,-21198.6465147,0.00011099,2]
[420966745,1776819039775,-200.0,0.00011099,2]
[420966746,1776819039784,-52704.43304503,0.00011099,2]
[420966747,1776819039793,-52704.43304501,0.00011099,2]
[420966748,1776819039802,-52704.43304501,0.00011099,2]
[420966749,1776819039812,-52704.43304501,0.00011099,2]
[420966750,1776819039822,-52704.43304501,0.00011099,2]
[420966751,1776819039831,-52704.43304501,0.00011099,2]
[420966752,1776819039841,-52704.43304501,0.00011099,2]
[420966753,1776819039851,-151.0,0.00011099,2]
[420966754,1776819039860,-151.0,0.00011099,2]
[420966755,1776819039869,-675.18,0.00011099,2]
[420966756,1776819039879,-151.0,0.00011099,2]
[420966757,1776819039888,-151.0,0.00011099,2]
[420966758,1776819039897,-151.0,0.00011099,2]
[420966759,1776819039906,-151.0,0.00011099,2]
[420966760,1776819039916,-151.0,0.00011099,2]
[420966761,1776819039925,-25000.0,0.00011101,2]
[420966762,1776819039935,-2069.16336932,0.00011107,2]
[420966763,1776819039944,-25000.0,0.00011109,2]
[420966764,1776819039953,-25000.0,0.00011118,2]
[420966765,1776819039963,-25000.0,0.00011127,2]
[420966766,1776819039972,-151.0,0.00011127,2]
[420966767,1776819039983,-15481.85971745,0.00011131,2]
[420966768,1776819039992,-52704.43304501,0.00011133,2]
[420966769,1776819040002,-21198.6465147,0.00011133,2]
[420966770,1776819040012,-25000.0,0.00011136,2]
[420966771,1776819040022,-25000.0,0.00011145,2]
[420966772,1776819040032,-493.57608524,0.00011152,2]
[420966773,1776819040042,-25000.0,0.00011153,2]
[420966774,1776819040051,-300.0,0.00011156,2]
[420966775,1776819040060,-38571.4884895,0.00011157,2]
[420966776,1776819040069,-1070.8848908,0.00011157,2]
[420966777,1776819040079,-25000.0,0.00011162,2]
[420966778,1776819040088,-300.0,0.0001117,2]
[420966779,1776819040097,-25000.0,0.00011171,2]
[420966780,1776819040106,-19408.62507117,0.00011171,2]
[420966781,1776819040116,-2000.0,0.000112,2]
[420966782,1776819040125,-155.0,0.000112,2]
[420966783,1776819040135,-155.0,0.000112,2]
[420966784,1776819040145,-155.0,0.000112,2]
[420966785,1776819040154,-501.62555,0.0001121,2]
[420966786,1776819040163,-2069.16336932,0.00011215,2]
[420966787,1776819040173,-350.0,0.00011238,2]
[420966788,1776819040182,-250.0,0.0001126,2]
[420966789,1776819040191,-250.0,0.0001126,2]
[420966790,1776819040201,-250.0,0.0001126,2]
[420966791,1776819040210,-161.0,0.000113,2]
[420966792,1776819040219,-161.0,0.000113,2]
[420966793,1776819040229,-161.0,0.000113,2]
[420966794,1776819040239,-2000.0,0.000113,2]
[420966795,1776819040248,-257.11584003,0.000113,2]
[420966796,1776819040258,-864.02453728,0.000113,2]
[420966797,1776819040267,-1536.04360649,0.00011312,2]
[420966798,1776819040276,-300.0,0.00011313,2]
[420966799,1776819040285,-200.0,0.00011314,2]
[420966800,1776819040295,-200.0,0.00011314,2]
[420966801,1776819040304,-212.33669566,0.00011314,2]
[420966802,1776819040314,-500.0,0.00011314,2]
[420966803,1776819040323,-241.0,0.00011314,3]
[420966804,1776819040333,-155.0,0.00011314,3]
[420966805,1776819040342,-14119.22,0.00011314,2]
[420966806,1776819040351,-52034.93,0.00011314,2]
[420966807,1776819040360,-500.0,0.00011315,2]
[420966808,1776819040369,-500.0,0.00011315,2]
[420966809,1776819040378,-500.0,0.00011315,2]
[420966810,1776819040387,-500.0,0.00011315,2]
[420966811,1776819040396,-500.0,0.00011315,2]
[420966812,1776819040406,-500.0,0.00011315,2]
[420966813,1776819040415,-500.0,0.00011315,2]
[420966814,1776819040424,-500.0,0.00011315,2]
[420966815,1776819040433,-500.0,0.00011315,2]
[420966816,1776819040442,-500.0,0.00011315,2]
[420966817,1776819040451,-500.0,0.00011315,2]
[420966818,1776819040460,-500.0,0.00011315,2]
[420966819,1776819040470,-500.0,0.00011315,2]
[420966820,1776819040479,-500.0,0.00011315,2]
[420966821,1776819040488,-512.0,0.00011315,2]
[420966822,1776819040497,-500.0,0.00011315,2]
[420966823,1776819040506,-500.0,0.00011315,2]
[420966824,1776819040515,-500.0,0.00011315,2]
[420966825,1776819040524,-500.0,0.00011315,2]
[420966826,1776819040534,-500.0,0.00011315,2]
[420966827,1776819040543,-500.0,0.00011315,2]
[420966828,1776819040552,-500.0,0.00011315,2]
[420966829,1776819040561,-500.0,0.00011315,2]
[420966830,1776819040571,-500.0,0.00011315,2]
[420966831,1776819040580,-500.0,0.00011315,2]
[420966832,1776819040590,-500.0,0.00011315,2]
[420966833,1776819040599,-500.0,0.00011315,2]
[420966834,1776819040608,-500.0,0.00011315,2]
[420966835,1776819040618,-500.0,0.00011315,2]
[420966836,1776819040627,-500.0,0.00011315,2]
[420966837,1776819040636,-500.0,0.00011315,2]
[420966838,1776819040645,-500.0,0.00011315,2]
[420966839,1776819040654,-500.0,0.00011315,2]
[420966840,1776819040663,-500.0,0.00011315,2]
[420966841,1776819040672,-500.0,0.00011315,2]
[420966842,1776819040681,-500.0,0.00011315,2]
[420966843,1776819040690,-500.0,0.00011315,2]
[420966844,1776819040699,-500.0,0.00011315,2]
[420966845,1776819040708,-500.0,0.00011315,2]
[420966846,1776819040717,-953.0,0.00011315,2]
[420966847,1776819040726,-500.0,0.00011315,2]
[420966848,1776819040736,-500.0,0.00011315,2]
[420966849,1776819040745,-500.0,0.00011315,2]
[420966850,1776819040754,-500.0,0.00011315,2]
[420966851,1776819040763,-500.0,0.00011315,2]
[420966852,1776819040772,-500.0,0.00011315,2]
[420966853,1776819040781,-500.0,0.00011315,2]
[420966854,1776819040790,-500.0,0.00011315,2]
[420966855,1776819040800,-500.0,0.00011315,2]
[420966856,1776819040809,-500.0,0.00011315,2]
[420966857,1776819040819,-500.0,0.00011315,2]
[420966858,1776819040828,-500.0,0.00011315,2]
[420966859,1776819040837,-500.0,0.00011315,2]
[420966860,1776819040846,-500.0,0.00011315,2]
[420966861,1776819040855,-500.0,0.00011315,2]
[420966862,1776819040865,-500.0,0.00011315,2]
[420966863,1776819040874,-500.0,0.00011315,2]
[420966864,1776819040884,-500.0,0.00011315,2]
[420966865,1776819040893,-500.0,0.00011315,2]
[420966866,1776819040902,-500.0,0.00011315,2]
[420966867,1776819040912,-500.0,0.00011315,2]
[420966868,1776819040921,-500.0,0.00011315,2]
[420966869,1776819040930,-934.0,0.00011315,2]
[420966870,1776819040939,-500.0,0.00011315,2]
[420966871,1776819040948,-500.0,0.00011315,2]
[420966872,1776819040957,-500.0,0.00011315,2]
[420966873,1776819040967,-500.0,0.00011315,2]